{"text_format":"1","workbook":"xlsx","n_sheets":3,"sheets":["Stok Listesi","Stok Seçme Listesi","Bölme Arama"],"not_rendered":{"charts":0,"images":0,"macros":1,"external_links":0,"defined_names":8,"comments":0,"pivot_tables":0},"unopened":[],"bounds":{"document_bytes":16777216,"sheet_cells":100000,"rows_first":2000,"rows_last":500,"rows_between":2000,"halvings":0,"cell_chars":16384,"cell_head_chars":4096},"cells_cut":0,"cells_raw":0,"read":"whole","date_system":"1900"}

{"sheet":"Stok Listesi","index":0,"n_rows":15,"n_cols":11,"rows_kept":15,"cut":false,"hidden":false,"merged":[]}
[null,"STOK LİSTESİ"]
[null,"TOPLAM STOK DEĞERİ:","STOK ÖĞELERİ:","BÖLME SAYISI:","STOK SEÇME LİSTESİ","BÖLME ARAMA"]
[null,{"$f":"SUM(StokListesi[STOK DEĞERİ])","v":4649},{"$f":"COUNTA(StokListesi[AÇIKLAMA])","v":11},{"$f":"SUMPRODUCT((1/COUNTIF(StokListesi[BÖLME NO],StokListesi[BÖLME NO]&\"\")))","v":6}]
[null,"SKU","AÇIKLAMA","BÖLME NO","KONUM","BİRİM","MKT","YENİDEN SİPARİŞ MİKTARI","MALİYET","STOK DEĞERİ","YENİDEN SİPARİŞ"]
[null,"SP7875","Öğe 1","T345",{"$f":"IFERROR(VLOOKUP(StokListesi[[#This Row],[BÖLME NO]],BölmeArama[],3,FALSE),\"\")","v":"Satır 2, yuva 1"},"Her Biri",20,10,30,{"$f":"StokListesi[[#This Row],[MKT]]*StokListesi[[#This Row],[MALİYET]]","v":600},{"$f":"IFERROR(IF(StokListesi[[#This Row],[MKT]]<=StokListesi[[#This Row],[YENİDEN SİPARİŞ MİKTARI]],1,0),0)","v":0}]
[null,"TR87680","Öğe 2","T345",{"$f":"IFERROR(VLOOKUP(StokListesi[[#This Row],[BÖLME NO]],BölmeArama[],3,FALSE),\"\")","v":"Satır 2, yuva 1"},"Her Biri",30,15,40,{"$f":"StokListesi[[#This Row],[MKT]]*StokListesi[[#This Row],[MALİYET]]","v":1200},{"$f":"IFERROR(IF(StokListesi[[#This Row],[MKT]]<=StokListesi[[#This Row],[YENİDEN SİPARİŞ MİKTARI]],1,0),0)","v":0}]
[null,"MK676554","Öğe 3","T5789",{"$f":"IFERROR(VLOOKUP(StokListesi[[#This Row],[BÖLME NO]],BölmeArama[],3,FALSE),\"\")","v":"Satır 1, yuva 1"},"Her Biri",10,5,5,{"$f":"StokListesi[[#This Row],[MKT]]*StokListesi[[#This Row],[MALİYET]]","v":50},{"$f":"IFERROR(IF(StokListesi[[#This Row],[MKT]]<=StokListesi[[#This Row],[YENİDEN SİPARİŞ MİKTARI]],1,0),0)","v":0}]
[null,"YE98767","Öğe 4","T9876",{"$f":"IFERROR(VLOOKUP(StokListesi[[#This Row],[BÖLME NO]],BölmeArama[],3,FALSE),\"\")","v":"Satır 3, yuva 2"},"Kutu (10 adet)",40,10,15,{"$f":"StokListesi[[#This Row],[MKT]]*StokListesi[[#This Row],[MALİYET]]","v":600},{"$f":"IFERROR(IF(StokListesi[[#This Row],[MKT]]<=StokListesi[[#This Row],[YENİDEN SİPARİŞ MİKTARI]],1,0),0)","v":0}]
[null,"XR23423","Öğe 5","T098",{"$f":"IFERROR(VLOOKUP(StokListesi[[#This Row],[BÖLME NO]],BölmeArama[],3,FALSE),\"\")","v":"Satır 3, yuva 1"},"Her Biri",12,10,26,{"$f":"StokListesi[[#This Row],[MKT]]*StokListesi[[#This Row],[MALİYET]]","v":312},{"$f":"IFERROR(IF(StokListesi[[#This Row],[MKT]]<=StokListesi[[#This Row],[YENİDEN SİPARİŞ MİKTARI]],1,0),0)","v":0}]
[null,"PW98762","Öğe 6","T345",{"$f":"IFERROR(VLOOKUP(StokListesi[[#This Row],[BÖLME NO]],BölmeArama[],3,FALSE),\"\")","v":"Satır 2, yuva 1"},"Her Biri",7,10,50,{"$f":"StokListesi[[#This Row],[MKT]]*StokListesi[[#This Row],[MALİYET]]","v":350},{"$f":"IFERROR(IF(StokListesi[[#This Row],[MKT]]<=StokListesi[[#This Row],[YENİDEN SİPARİŞ MİKTARI]],1,0),0)","v":1}]
[null,"BM87684","Öğe 7","T349",{"$f":"IFERROR(VLOOKUP(StokListesi[[#This Row],[BÖLME NO]],BölmeArama[],3,FALSE),\"\")","v":"Satır 1, yuva 2"},"Her Biri",10,5,10,{"$f":"StokListesi[[#This Row],[MKT]]*StokListesi[[#This Row],[MALİYET]]","v":100},{"$f":"IFERROR(IF(StokListesi[[#This Row],[MKT]]<=StokListesi[[#This Row],[YENİDEN SİPARİŞ MİKTARI]],1,0),0)","v":0}]
[null,"BH67655","Öğe 8","T5789",{"$f":"IFERROR(VLOOKUP(StokListesi[[#This Row],[BÖLME NO]],BölmeArama[],3,FALSE),\"\")","v":"Satır 1, yuva 1"},"Her Biri",19,10,3,{"$f":"StokListesi[[#This Row],[MKT]]*StokListesi[[#This Row],[MALİYET]]","v":57},{"$f":"IFERROR(IF(StokListesi[[#This Row],[MKT]]<=StokListesi[[#This Row],[YENİDEN SİPARİŞ MİKTARI]],1,0),0)","v":0}]
[null,"WT98768","Öğe 9","T9875",{"$f":"IFERROR(VLOOKUP(StokListesi[[#This Row],[BÖLME NO]],BölmeArama[],3,FALSE),\"\")","v":"Satır 2, yuva 2"},"Paket (5 adet)",20,30,14,{"$f":"StokListesi[[#This Row],[MKT]]*StokListesi[[#This Row],[MALİYET]]","v":280},{"$f":"IFERROR(IF(StokListesi[[#This Row],[MKT]]<=StokListesi[[#This Row],[YENİDEN SİPARİŞ MİKTARI]],1,0),0)","v":1}]
[null,"TS3456","Öğe 10","T349",{"$f":"IFERROR(VLOOKUP(StokListesi[[#This Row],[BÖLME NO]],BölmeArama[],3,FALSE),\"\")","v":"Satır 1, yuva 2"},"Her Biri",15,8,60,{"$f":"StokListesi[[#This Row],[MKT]]*StokListesi[[#This Row],[MALİYET]]","v":900},{"$f":"IFERROR(IF(StokListesi[[#This Row],[MKT]]<=StokListesi[[#This Row],[YENİDEN SİPARİŞ MİKTARI]],1,0),0)","v":0}]
[null,"WDG123","Öğe 11","T349",{"$f":"IFERROR(VLOOKUP(StokListesi[[#This Row],[BÖLME NO]],BölmeArama[],3,FALSE),\"\")","v":"Satır 1, yuva 2"},"Her Biri",25,15,8,{"$f":"StokListesi[[#This Row],[MKT]]*StokListesi[[#This Row],[MALİYET]]","v":200},{"$f":"IFERROR(IF(StokListesi[[#This Row],[MKT]]<=StokListesi[[#This Row],[YENİDEN SİPARİŞ MİKTARI]],1,0),0)","v":0}]

{"sheet":"Stok Seçme Listesi","index":1,"n_rows":9,"n_cols":9,"rows_kept":9,"cut":false,"hidden":false,"merged":[]}
[null,"STOK SEÇME LİSTESİ"]
[null,null,"STOK LİSTESİ"]
[]
[null,"SİPARİŞ NO","SKU","SEÇME MİKTARI","KULLANILABİLİR MİKTAR","ÖĞE AÇIKLAMASI","BİRİM","BÖLME NO","KONUM"]
[null,"TP001-1","SP7875",3,{"$f":"IFERROR(VLOOKUP(StokSeçmeListesi[[#This Row],[SKU]],StokListesi[],6,FALSE),\"\")","v":20},{"$f":"IFERROR(VLOOKUP(StokSeçmeListesi[[#This Row],[SKU]],StokListesi[],2,FALSE),\"\")","v":"Öğe 1"},{"$f":"IFERROR(VLOOKUP(StokSeçmeListesi[[#This Row],[SKU]],StokListesi[],5,FALSE),\"\")","v":"Her Biri"},{"$f":"IFERROR(VLOOKUP(StokSeçmeListesi[[#This Row],[SKU]],StokListesi[],3,FALSE),\"\")","v":"T345"},{"$f":"IFERROR(VLOOKUP(StokSeçmeListesi[[#This Row],[SKU]],StokListesi[],4,FALSE),\"\")","v":"Satır 2, yuva 1"}]
[null,"TP001-1","YE98767",1,{"$f":"IFERROR(VLOOKUP(StokSeçmeListesi[[#This Row],[SKU]],StokListesi[],6,FALSE),\"\")","v":40},{"$f":"IFERROR(VLOOKUP(StokSeçmeListesi[[#This Row],[SKU]],StokListesi[],2,FALSE),\"\")","v":"Öğe 4"},{"$f":"IFERROR(VLOOKUP(StokSeçmeListesi[[#This Row],[SKU]],StokListesi[],5,FALSE),\"\")","v":"Kutu (10 adet)"},{"$f":"IFERROR(VLOOKUP(StokSeçmeListesi[[#This Row],[SKU]],StokListesi[],3,FALSE),\"\")","v":"T9876"},{"$f":"IFERROR(VLOOKUP(StokSeçmeListesi[[#This Row],[SKU]],StokListesi[],4,FALSE),\"\")","v":"Satır 3, yuva 2"}]
[null,"TP001-1","BM87684",2,{"$f":"IFERROR(VLOOKUP(StokSeçmeListesi[[#This Row],[SKU]],StokListesi[],6,FALSE),\"\")","v":10},{"$f":"IFERROR(VLOOKUP(StokSeçmeListesi[[#This Row],[SKU]],StokListesi[],2,FALSE),\"\")","v":"Öğe 7"},{"$f":"IFERROR(VLOOKUP(StokSeçmeListesi[[#This Row],[SKU]],StokListesi[],5,FALSE),\"\")","v":"Her Biri"},{"$f":"IFERROR(VLOOKUP(StokSeçmeListesi[[#This Row],[SKU]],StokListesi[],3,FALSE),\"\")","v":"T349"},{"$f":"IFERROR(VLOOKUP(StokSeçmeListesi[[#This Row],[SKU]],StokListesi[],4,FALSE),\"\")","v":"Satır 1, yuva 2"}]
[null,"TP001-1","TS3456",6,{"$f":"IFERROR(VLOOKUP(StokSeçmeListesi[[#This Row],[SKU]],StokListesi[],6,FALSE),\"\")","v":15},{"$f":"IFERROR(VLOOKUP(StokSeçmeListesi[[#This Row],[SKU]],StokListesi[],2,FALSE),\"\")","v":"Öğe 10"},{"$f":"IFERROR(VLOOKUP(StokSeçmeListesi[[#This Row],[SKU]],StokListesi[],5,FALSE),\"\")","v":"Her Biri"},{"$f":"IFERROR(VLOOKUP(StokSeçmeListesi[[#This Row],[SKU]],StokListesi[],3,FALSE),\"\")","v":"T349"},{"$f":"IFERROR(VLOOKUP(StokSeçmeListesi[[#This Row],[SKU]],StokListesi[],4,FALSE),\"\")","v":"Satır 1, yuva 2"}]
[null,"TP001-1","MK676554",3,{"$f":"IFERROR(VLOOKUP(StokSeçmeListesi[[#This Row],[SKU]],StokListesi[],6,FALSE),\"\")","v":10},{"$f":"IFERROR(VLOOKUP(StokSeçmeListesi[[#This Row],[SKU]],StokListesi[],2,FALSE),\"\")","v":"Öğe 3"},{"$f":"IFERROR(VLOOKUP(StokSeçmeListesi[[#This Row],[SKU]],StokListesi[],5,FALSE),\"\")","v":"Her Biri"},{"$f":"IFERROR(VLOOKUP(StokSeçmeListesi[[#This Row],[SKU]],StokListesi[],3,FALSE),\"\")","v":"T5789"},{"$f":"IFERROR(VLOOKUP(StokSeçmeListesi[[#This Row],[SKU]],StokListesi[],4,FALSE),\"\")","v":"Satır 1, yuva 1"}]

{"sheet":"Bölme Arama","index":2,"n_rows":11,"n_cols":7,"rows_kept":11,"cut":false,"hidden":false,"merged":[]}
[null,"BÖLME ARAMA"]
[null,"STOK LİSTESİ"]
[]
[null,"BÖLME NO","AÇIKLAMA","KONUM","GENİŞLİK","YÜKSEKLİK","UZUNLUK"]
[null,"T345","Büyük bölme","Satır 2, yuva 1",50,10,10]
[null,"T5789","Küçük bölme","Satır 1, yuva 1",25,5,5]
[null,"T9876","Büyük bölme","Satır 3, yuva 2",50,10,10]
[null,"T098","Orta bölme","Satır 3, yuva 1",30,7,10]
[null,"T349","Küçük bölme","Satır 1, yuva 2",25,5,5]
[null,"T5789","Büyük bölme","Satır 4, yuva 5",50,10,10]
[null,"T9875","Büyük bölme","Satır 2, yuva 2",50,10,10]